Cogmind - Beta 13 @@@ ROGUE MODE // 2024.03.26 @ 18:12:20 Player: f3-rnm Result: Destroyed by YI-5QT(R) with Subdweller Beam Cannon Performance ------------- Evolutions (0) 0 Regions Visited (2) 400 Robots Destroyed (37) 185 Value Destroyed (1043) 1043 Prototype IDs (0) 0 Alien Tech Used (0) 0 Bonus (0) 0 TOTAL SCORE: 1628 Bonus ------- None Cogmind --------- Core Integrity 0/250 Matter 214/300 Energy 179/250 System Corruption 0% Temperature Cool (6) Movement Treading (240) Ox1 Location -10/Subcaves Parts ------- > --- POWER (1) -------- Ion Engine > --- PROPULSION (2) --- Light Treads Light Treads > --- UTILITY (2) ------ High-capacity Storage Unit Shield Generator > --- WEAPON (2) ------- Heavy Battle Rifle Battle Cannon > --- INVENTORY (20) --- Makeshift Power Source Light Treads Light Treads Light Treads Compact Wheel Improved Heat Sink High-capacity Storage Unit Seismic Detector Utility Shielding Shield Generator Tractor Beam Battle Cannon Battle Cannon Battle Cannon Mini Grenade Launcher Mini Grenade Launcher Multitool Makeshift Hammer Peak State ------------ > --- POWER ------------ Light Nuclear Core > --- PROPULSION ------- Light Treads Spiked Treads > --- UTILITY ---------- Improved Heat Sink Makeshift Thermal Plating > --- WEAPON ----------- Subdweller Beam Cannon Heavy Battle Rifle > --- INVENTORY -------- Light Treads High-capacity Storage Unit Tractor Beam Battle Cannon Mini Grenade Launcher [Rating: 19] Favorites ----------- Power Ion Engine Engine Ion Engine Power Core Light Nuclear Core Propulsion Light Treads Treads Light Treads Utility High-capacity Storage Unit Device Shield Generator Storage High-capacity Storage Unit Processor Transport Network Coupler Protection Makeshift Thermal Plating Weapon Heavy Battle Rifle Energy Gun EM Pulse Gun Energy Cannon Subdweller Beam Cannon Ballistic Gun Heavy Battle Rifle Ballistic Cannon Battle Cannon Launcher Mini Grenade Launcher Build | -11 -10 -10 ------- Run | Yrd Mat Sub Slots Evolved . | . . . Power . | . . . Propulsion . | . . . Utility . | . . . Weapon . | . . . Parts Attached 29 | 6 5 18 Power 4 | 1 1 2 Engine 3 | 1 . 2 Core 1 | . 1 . Reactor . | . . . Propulsion 6 | 2 . 4 Treads 6 | 2 . 4 Leg . | . . . Wheel . | . . . Hover . | . . . Flight . | . . . Utility 9 | 1 3 5 Device 4 | . 1 3 Storage 3 | 1 1 1 Processor 1 | . 1 . Hackware . | . . . Protection 1 | . . 1 Artifact . | . . . Weapon 10 | 2 1 7 Energy Gun 1 | 1 . . Energy Cannon 2 | . . 2 Ballistic Gun 3 | 1 . 2 Ballistic Cannon 3 | . 1 2 Launcher 1 | . . 1 Special Weapon . | . . . Impact Weapon . | . . . Slashing Weapon . | . . . Piercing Weapon . | . . . Special Melee Weapon . | . . . Unidentified Prototypes . | . . . Parts Lost 3 | . . 3 Power 1 | . . 1 Propulsion . | . . . Utility 2 | . . 2 Weapon . | . . . Highest Loss Streak 1 | . . 1 To Critical Strikes . | . . . Average Slot Usage (%) 97 | . 98 97 Engine 8 | . 9 7 Core 4 | . 4 5 Treads 27 | . 28 27 Device 13 | . 4 17 Storage 9 | . 14 7 Processor 2 | . 7 . Protection 1 | . . 2 Energy Gun 2 | . 9 . Energy Cannon 6 | . . 9 Ballistic Gun 11 | . 14 10 Ballistic Cannon 6 | . 4 6 Launcher 1 | . . 1 Naked Turns . | . . . Heaviest Build 59 | 14 54 59 Greatest Support 40 | 40 40 40 Greatest Overweight (x) 1 | . 1 1 Average Overweight (x) . | . . . Largest Inventory Capacity 20 | 8 20 20 Average Capacity 14 | 6 19 13 Most Carried 20 | 5 20 20 Average Carried 12 | 2 17 11 Final Capacity 20 | 8 20 20 Final Carried 20 | 3 20 18 Class Distribution -------------------- 100% | Mutant Dominant Class ---------------- Mutant | -10/Materials Mutant | -10/Subcaves Resources | -11 -10 -10 ----------- Run | Yrd Mat Sub Matter Collected 1156 | 132 323 701 Remotely 213 | . . 213 Salvage Created 1307 | . 459 848 Parts 98 | . 49 49 Haulers Intercepted 1 | . 1 . Recyclers Shooed . | . . . Parts Field Recycled . | . . . Retrieved Matter . | . . . Parts Self-Destructed 14 | . . 14 Prevented . | . . . Kills | -11 -10 -10 ------- Run | Yrd Mat Sub Combat Hostiles Destroyed 30 | . 11 19 Guns 10 | . 8 2 Cannons 14 | . . 14 AOE 4 | . 3 1 Classes Destroyed 10 | . 7 3 Worker 1 | . 1 . Builder 2 | . 2 . Hauler 1 | . 1 . Operator 1 | . 1 . Watcher 2 | . 2 . Swarmer 7 | . 5 2 Grunt 6 | . 6 . Sentry 1 | . . 1 Artisan 1 | . . 1 Subdweller 16 | . . 16 Best Kill Streak 6 | . 6 2 Combat Bots Only 4 | . 4 2 Max Kills in Single Turn 3 | . 3 1 Gunslinging . | . . . Exploded 2 | . 2 1 Melee . | . . . Uniques/NPCs Destroyed . | . . . Combat | -11 -10 -10 -------- Run | Yrd Mat Sub Hostile Shots Fired 131 | . 54 77 Missed 42 | . 22 20 Damage Taken 1255 | . 259 996 Core 251 | . 54 197 Absorbed by Shields 185 | . . 185 Ignored by Resistances 19 | . . 19 Core Remaining (%) 100 | 100 . . Volleys Fired 161 | . 51 110 Largest 2 | . 2 2 Hottest 115 | . 60 115 Shots Fired 315 | . 102 213 Gun 174 | . 90 84 Cannon 133 | . 12 121 Launcher 8 | . . 8 Special . | . . . Kinetic 197 | . 63 134 Thermal 71 | . . 71 Explosive 8 | . . 8 Electromagnetic 39 | . 39 . Robot Hit Streak 11 | . 8 11 Robot Miss Streak 7 | . 7 3 Penetration Max . | . . . Secondary Targets 2 | . 2 . Max Gunslinging Chain 1 | . 1 . Shots Hit Robots 130 | . 49 81 Core Hits 51 | . 25 26 Critical Kills 2 | . . 2 Critical Parts Destroyed . | . . . Critical Strikes 5 | . . 5 Meltdown 2 | . . 2 Blast 3 | . . 3 Melee Attacks . | . . . Impact . | . . . Slashing . | . . . Piercing . | . . . Sneak Attacks . | . . . Combat Hostiles . | . . . Follow-up Attacks . | . . . Damage Inflicted 2989 | . 834 2155 Guns 964 | . 575 389 Cannons 1492 | . 100 1392 Explosions 533 | . 159 374 Melee . | . . . Ramming . | . . . Kinetic 1158 | . 407 751 Thermal 1189 | . 159 1030 Explosive 374 | . . 374 Electromagnetic 268 | . 268 . Impact . | . . . Slashing . | . . . Piercing . | . . . Highest Corruption . | . . . Average Corruption . | . . . Corruption Purged . | . . . Corruption Blocked . | . . . Overload Shots . | . . . Overflow Damage 18 | . 3 15 Projectiles 3 | . 3 . Explosions 15 | . . 15 Melee . | . . . Knockbacks 5 | . 1 4 Impact . | . . . Kinetic 5 | . 1 4 Secondary . | . . . Self-Inflicted Damage . | . . . Shots . | . . . Rammed . | . . . Targets Rammed . | . . . Kicked . | . . . Crushed . | . . . Highest Temperature 234 | . 6 234 Average Temperature 32 | . 6 41 Received Heat Transfer 404 | . 24 380 Siege Activations . | . . . Robots Corrupted . | . . . Combat Hostiles . | . . . Parts Fried . | . . . Impact Corruptions . | . . . Robots Melted 2 | . . 2 Combat Hostiles 2 | . . 2 Parts Melted 3 | . . 3 Heat Transferred 1669 | . 300 1369 Parts Sabotaged . | . . . Parts Stolen . | . . . Parts Stripped . | . . . Power Chain Reactions 2 | . 2 . Alert | -11 -10 -10 ------- Run | Yrd Mat Sub Peak Influence 184 | . 184 . Initial . | . . . Average 34 | . 36 . Maximum Alert Level . | . . . Low Security (%) 100 | 100 100 . Level 1 . | . . . Level 2 . | . . . Level 3 . | . . . Level 4 . | . . . Level 5 . | . . . High Security . | . . . Max Security . | . . . Squads Dispatched 2 | . 2 . Investigation . | . . . Extermination . | . . . Reinforcement 2 | . 2 . Assault . | . . . Garrison . | . . . Intercept . | . . . Searches Triggered . | . . . Construction Impeded . | . . . Haulers Reinforced . | . . . Active Scanning Responses . | . . . Cargo Convoy Interrupts . | . . . Stealth | -11 -10 -10 --------- Run | Yrd Mat Sub Distress Signals 1 | . 1 . Communications Jammed . | . . . Distress Signals . | . . . Times Spotted 47 | . 24 23 Peak Tracking Total 5 | . 5 2 Tactical Retreats 4 | . . 4 Traps | -11 -10 -10 ------- Run | Yrd Mat Sub Traps Triggered 1 | . . 1 Indirectly . | . . . Trap Hack Attempts . | . . . Triggered . | . . . Disarmed . | . . . Reprogrammed . | . . . Reused . | . . . Traps Extracted . | . . . Installed . | . . . Triggered 2 | . . 2 Machines | -11 -10 -10 ---------- Run | Yrd Mat Sub Machines Disabled 2 | . 2 . Max in Single Turn 1 | . 1 . Machines Repaired . | . . . Machines Dismantled . | . . . Machines Sabotaged . | . . . Overloaded Fab Kills . | . . . Hacking | -11 -10 -10 --------- Run | Yrd Mat Sub Machines Accessed 2 | . 1 1 Terminals 1 | . 1 . Fabricators . | . . . Repair Stations . | . . . Recycling Units . | . . . Scanalyzers . | . . . Garrison Access . | . . . Total Hacks 4 | . 2 2 Successful 2 | . . 2 Failed 2 | . 2 . Catastrophic . | . . . Database Lockouts . | . . . Manual 2 | . 2 . Terminals 2 | . 2 . Fabricators . | . . . Repair Stations . | . . . Recycling Units . | . . . Scanalyzers . | . . . Garrison Access . | . . . Terminal Hacks 2 | . . 2 Record 2 | . . 2 Fabricator Hacks . | . . . Repair Station Hacks . | . . . Recycling Unit Hacks . | . . . Scanalyzer . | . . . Garrison Access Hacks . | . . . Unauthorized Hacks . | . . . Terminals . | . . . Fabricators . | . . . Repair Stations . | . . . Recycling Units . | . . . Scanalyzers . | . . . Garrison Access . | . . . Data Cores Recovered . | . . . Used . | . . . Hacking Detections 1 | . 1 . Full Trace Events . | . . . Feedback Events . | . . . Feedback Blocked . | . . . Robot Schematics Acquired . | . . . Robots Built . | . . . Authchips . | . . . Time . | . . . Total Robot Build Rating . | . . . Part Schematics Acquired . | . . . Parts Built . | . . . Authchips . | . . . Time . | . . . Total Part Build Rating . | . . . Parts Repaired . | . . . Time . | . . . Parts Recycled . | . . . Recycled Matter . | . . . Retrieved Matter . | . . . Retrieved Components . | . . . Parts Scanalyzed . | . . . Part Schematics Acquired . | . . . Parts Damaged . | . . . Bothacking | -11 -10 -10 ------------ Run | Yrd Mat Sub Used RIF Installer . | . . . Robots Hacked . | . . . Non-combat . | . . . Combat . | . . . Robot Hacks Applied . | . . . Relay Couplers Released . | . . . Fabnet Peak Effective % . | . . . Robots Rewired . | . . . Allies Hacked . | . . . Hacks Repelled . | . . . Allies | -11 -10 -10 -------- Run | Yrd Mat Sub Total Allies . | . . . Largest Group . | . . . Highest-Rated Group . | . . . Highest-Rated Ally . | . . . Total Orders . | . . . Ally Attacks . | . . . Total Damage . | . . . Kills . | . . . Allies Corrupted . | . . . Allies Melted . | . . . Intel | -11 -10 -10 ------- Run | Yrd Mat Sub Robot Analysis Total . | . . . Derelict Logs Recovered 1 | . . 1 Drone Launches . | . . . Drone Recoveries . | . . . Exploration | -11 -10 -10 ------------- Run | Yrd Mat Sub Turns Passed 6588 | 74 1739 4775 Spaces Moved 2838 | 45 618 2175 Core 10 | 10 . . Treads 2828 | 35 618 2175 Legs . | . . . Wheels . | . . . Hover . | . . . Flight . | . . . Fastest Speed 50 | 50 160 160 Average Speed 203 | 135 230 197 Slowest Speed 240 | 160 240 240 Overloaded Moves . | . . . Propulsion Burnouts . | . . . Robots Hopped . | . . . Cave-ins Triggered . | . . . Exploration Rate (%) 65 | 4 96 96 Regions Visited 2 Branch Regions 1 Pre-discovered Areas . | . . . Known Exits Taken . | . . . Unknown Exits Taken 2 | 1 1 . Scrap Searched 14 | . . 14 Spaces Dug 19 | . . 19 Terrain Destroyed 66 | . 6 60 Melee . | . . . Projectile 31 | . . 31 AOE 35 | . 6 29 Terrain Rammed . | . . . Walls Destroyed . | . . . Machines Disabled . | . . . Actions | -11 -10 -10 --------- Run | Yrd Mat Sub Total 3342 | 58 837 2447 Wait 242 | . 134 108 Move 2836 | 44 617 2175 Hop . | . . . Pick Up 54 | 8 23 23 Fast Attach 7 | 1 2 4 Attach 16 | 5 3 8 Detach . | . . . Swap 6 | . . 6 Drop 20 | . 7 13 Fire 161 | . 51 110 Melee . | . . . Ram . | . . . Kick . | . . . Crush . | . . . Escape Stasis . | . . . Rewire . | . . . Trap . | . . . Miscellaneous . | . . . Route ------- -11/Scrapyard -10/Materials (discovered 5 exits: [*Mat x3] / [*Min] / *Sub) -10/Subcaves (discovered 2 exits: [*Mat x2]) History --------- Turn | Location | Event 4 | -11/Scrapyard | Discovered new exit (range 16) 75 | -11/Scrapyard | Entered Materials 317 | -10/Materials | Build established: Mutant 529 | -10/Materials | Discovered new exit (range 8) 787 | -10/Materials | Discovered new exit (range 7) 1116 | -10/Materials | Discovered new exit (range 7) 1579 | -10/Materials | Discovered new exit (range 11) 1777 | -10/Materials | Discovered new exit (range 9) 1814 | -10/Materials | Entered Subcaves 2025 | -10/Subcaves | Learned Materials emergency access door positions 2035 | -10/Subcaves | Disturbed a concealed Subdweller 2328 | -10/Subcaves | Shifting Twisted Machinery released Sub. Beam Cannon 2507 | -10/Subcaves | Shifting Twisted Machinery released Mak. Flight Unit 2529 | -10/Subcaves | Disturbed a concealed Subdweller 2964 | -10/Subcaves | Disturbed a concealed Subdweller 2968 | -10/Subcaves | Core integrity fell below 50% 3129 | -10/Subcaves | Visited Clippyterm 3133 | -10/Subcaves | Learned Factory garrison access intel 3223 | -10/Subcaves | A swath of the cavern ceiling suddenly collapsed 3277 | -10/Subcaves | Ambushed by Subdweller buried in earth 3458 | -10/Subcaves | Shifting Twisted Machinery released Mak. Hammer 3469 | -10/Subcaves | Shifting Twisted Machinery released Battle Cannon 3669 | -10/Subcaves | Discovered new exit (range 11) 3681 | -10/Subcaves | Ambushed by Subdwellers from Twisted Machinery 3865 | -10/Subcaves | Discovered new exit (range 13) 3885 | -10/Subcaves | Shifting Twisted Machinery released Riot Gun 3886 | -10/Subcaves | Shifting Twisted Machinery released Sub. Power Source 5064 | -10/Subcaves | Core integrity fell below 20% 5305 | -10/Subcaves | A swath of the cavern ceiling suddenly collapsed 6589 | -10/Subcaves | Destroyed by YI-5QT(R) with Subdweller Beam Cannon Last Messages --------------- 05518_ Flight Unit fries itself beyond repair. 05518_ Acquired 5 matter. 05519_ Flight Unit fries itself beyond repair. 05522_ Lgt. Assault Rifle fries itself beyond repair. 05552_ Acquired 42 matter. 05689_ Acquired 22 matter. 05696_ Acquired 44 matter. 05698_ Acquired 18 matter. 05883_ Triggered Piercing Trap. 05883_ Spikes shoot up from the floor. 05883_ Critical hit (Impale). 06289_ YT-4AV(u) tweaks Twisted Machinery. 06391_ YT-4AV(u) builds Twisted Machinery. 06452_ YT-4AV(u) tweaks Twisted Machinery. 06454_ YT-4AV(u) builds Twisted Machinery. 06530_ YT-4AV(u) cries out in pain. 06530_ YT-4AV(u) destroyed. 06553_ Acquired 18 matter. 06570_ Acquired Multitool. 06580_ YI-5QT(R): "LEAVESUB!" Map ----- +----------------------------------------------------+ | ### ##??????????????????????????????????# | | ##?# ##?????????????????????????????????## | | ???# #??????????????????????????????????# | | ???# #??????????????????????????????????# | | ???## ##??????????????????????????????????# | | ????####???????????????????????????????????# #### | | ???????????????????????????????????????????#????## | | ?????????????????????????????????????????????????? | | ?????????????????????????????????????????????????? | | ?????????????????????????????????????????????????? | | ????????????????????????????????????????????####?? | | ???????????????????????????????????????????## #? | | ???????????????????????????????????????????# # | | ????????????????????????????????????????????# | | ????????????????????????????????????????????# | | ?????????????????????????????????????????????# | | ????????????????#####????????????????????????### | | ???????????????## ""??######??????????????????## | | ??????????????##""" ?##"" #?????????????????## | | ??????????????#""" #?#"" #????????????????## | | ??????????????#""" ###" ##????????????????# | | ??????????????#""""##"" ##?????????????????# | | ???????????????# = " #??????????????????# | | ???????????#######"""= " ####???????????????# | | ???????????# #" #""""" "R #???????????????# | | ???????????##" """" "" "@ #???????????????## | | ???????????#"" ##""" """" #????????????????#### | | ???????????#" #### """ ##??????????????????### | | ???????????## ## ## "" #???????????????????# # | | ????????????# ### ""###???????????????#### | | ????????????# # ###### # ##?????####?##### # | | ????????????# ######## ## ####??#[ ### | | ????????????#### # ## # # #### [ ##& | | ???????????????# " ! & ## | | ??????????????# ## ######## = ! #### | | ??????????????##?####??????# ### # ##### #??? | | ???????????????????????????###?#######???######??? | | ?????????????????????????????????????????????????? | | ?????????????????????????????????????????????????? | | ?????????????????????????????????????????????????? | | ?????????????????????????????????????????????????? | | ?????????????????????????????????????????????????? | | ???###???????????????????????????????????????????? | | ??## ##??????????????????????????????????????????? | | ### <"###????????????????????????????????????????? | | ## [ #????????????????????????????????????????? | | "* #???????????????????????????????#######???? | | ##???????????????????????????????#&% %"#???? | | # ##????????????????????????????????#&%#=%#???? | | # ##?????????????????????????????????# &####???? | +----------------------------------------------------+ Best States ------------- Heat Dissipation 39 Energy Generation 15 Energy Capacity 250 Matter Stores 300 Matter Capacity 300 Sight Range 16 Terrain Scan Density 10 Armor Coverage 100 Resistance: TH 10 Evasion (%) 50 Recoil Reduction 2 Item Schematics ----------------- None Robot Schematics ------------------ None Fabricated ------------ Nothing Alien Tech Used ----------------- None Achievements -------------- None Challenges ------------ None Game ------ Seed NeutronExplosiveCorpse Manual? 0 Play Time 00:20:27 Cumulative 164.0 hours Start 2024.03.17 @ 14:26:37 End 2024.03.26 @ 18:12:20 Sessions 2 Manual Loads 0 Difficulty Rogue Special Mode None Game No. 175 Rogue 139 Adventurer 36 Explorer 0 Win Type - Total 9 Types 2/0/7/0/0/0/0/0/0 Lore% 56 Gallery% 80 Achievement% 69 Wizard Run 0 Options --------- Layout 0 ASCII 0 Keyboard 0 Movement Mouse Keybinds 0 Fullscreen 1 Font 18/SmallcapsGlow Map View 76x50 Zoom Use 0% Tactical HUD 1 Map Filters NONE Filters NONE Steam 1 RUN: bdfb9f32-4e11-4575-9791-17a6e18c3103